Cogmind - Beta 16 @@@ ROGUE MODE // 2025.11.27 @ 06:24:57 Player: Red Box Result: Destroyed by G-50 Soldier with Heavy Laser Performance ------------- Evolutions (5) 2500 Regions Visited (18) 3600 Robots Destroyed (374) 1870 Value Destroyed (14775) 14775 Prototype IDs (52) 1040 Alien Tech Used (0) 0 Bonus (6460) 6460 TOTAL SCORE: 30245 Bonus ------- High Alert Combat Kills 3396 Follower Combat Kills 1388 Network Hubs Disabled 400 Met Data Miner 300 Built Enhanced Grunts 300 A7 Reached Mainframe 300 Met R17 at Cetus 500 Friendly Fire -124 Cogmind --------- Core Integrity 0/1000 Matter 178/300 Energy 81/100 System Corruption 26% Temperature Cool (27) Movement Core (50) Location -5/Factory Parts ------- > --- POWER (1) -------- (None) > --- PROPULSION (3) --- (None) > --- UTILITY (10) ----- Advanced Heat Sink Improved Coolant Injector Improved Target Analyzer Authchip [Device] > --- WEAPON (3) ------- (None) > --- INVENTORY (5) ---- Improved Matter Compressor (300) Improved Medium Armor Plating Thief Drone Bay (3/3) Molecular Deconstructor Peak State ------------ > --- POWER ------------ Antimatter Reactor > --- PROPULSION ------- Centrium Heavy Treads Compact Wheel > --- UTILITY ---------- Advanced Heat Sink High-capacity Storage Unit Improved Sensor Array Advanced Signal Interpreter Experimental Targeting Computer Centrium Medium Armor Plating Centrium Medium Armor Plating Experimental Thermal Shield Advanced Shield Generator Improved System Shield > --- WEAPON ----------- Cooled Phase Gun Advanced KE Penetrator Advanced KE Penetrator > --- INVENTORY -------- Centrium Heavy Treads Centrium Heavy Treads Experimental Power Amplifier Improved Coolant Injector Advanced Energy Well Improved Matter Compressor Advanced Particle Charger Improved Transmission Jammer Centrium Medium Armor Plating Thief Drone Bay Advanced Variable Charge Gun Advanced Variable Charge Gun KE Penetrator Enhanced Coil Gun Advanced KE Penetrator 8R-AWN's Boregun Molecular Deconstructor [Rating: 124] Favorites ----------- Power Reinforced Fission Core Engine Improved Deuterium Engine Power Core Reinforced Fission Core Reactor Antimatter Reactor Propulsion Aluminum Leg Treads Heavy Treads Leg Aluminum Leg Wheel Armored Huge Wheel Utility High-capacity Storage Unit Device Advanced Weapon Cycler Storage High-capacity Storage Unit Processor Improved Signal Interpreter Hackware Improved System Shield Protection Hardened Light Armor Plating Weapon Enhanced Autogun Energy Gun Cooled Phase Gun Energy Cannon Heavy Ion Cannon Ballistic Gun Enhanced Autogun Ballistic Cannon Improved Light Cannon Launcher Grenade Launcher Special Weapon Molecular Deconstructor Impact Weapon Heavy Hammer Slashing Weapon Katana Piercing Weapon Spear Special Melee Weapon Datajack Build | -11 -10 -10 -10 -9 -8 -7 -7 -7 -7 -7 -7 -6 -6 -6 -6 -6 -6 -5 ------- Run | Yrd Mat Min Exi Min Mat Fac Was Fac Low Low Dat Pro Fac Ext Cet Arc Hub Fac Slots Evolved 10 | . . . . . 4 2 . . . . . . 2 . . . . 2 Power . | . . . . . . . . . . . . . . . . . . . Propulsion 1 | . . . . . . . . . . . . . . . . . . 1 Utility 8 | . . . . . 3 2 . . . . . . 2 . . . . 1 Weapon 1 | . . . . . 1 . . . . . . . . . . . . . Parts Attached 276 | 7 11 5 10 2 34 6 5 45 3 6 1 5 49 12 12 1 7 55 Power 28 | 1 1 . 2 . . . 2 7 1 1 . . 3 2 1 . 1 6 Engine 10 | 1 1 . 1 . . . . 2 1 1 . . 2 1 . . . . Core 10 | . . . 1 . . . 1 3 . . . . . 1 . . . 4 Reactor 8 | . . . . . . . 1 2 . . . . 1 . 1 . 1 2 Propulsion 30 | 2 . 1 3 . 5 1 1 2 1 . . 1 2 . 1 . 1 9 Treads 17 | . . . 2 . 4 1 . . 1 . . 1 1 . 1 . 1 5 Leg 4 | 2 . 1 . . . . . . . . . . . . . . . 1 Wheel 9 | . . . 1 . 1 . 1 2 . . . . 1 . . . . 3 Hover . | . . . . . . . . . . . . . . . . . . . Flight . | . . . . . . . . . . . . . . . . . . . Utility 121 | 2 3 3 1 . 18 3 2 9 1 2 . 3 33 8 6 . 3 24 Device 52 | 1 . 2 . . 8 . 1 3 . . . 2 13 4 . . 3 15 Storage 9 | 1 2 1 . . . . . 1 . . . . 3 . 1 . . . Processor 19 | . . . . . 3 1 1 2 . 1 . . 9 . . . . 2 Hackware 7 | . . . . . 2 . . . . . . . 3 1 . . . 1 Protection 34 | . 1 . 1 . 5 2 . 3 1 1 . 1 5 3 5 . . 6 Artifact . | . . . . . . . . . . . . . . . . . . . Weapon 97 | 2 7 1 4 2 11 2 . 27 . 3 1 1 11 2 4 1 2 16 Energy Gun 28 | 2 . . . 1 1 1 . 6 . . . . 6 1 2 . . 8 Energy Cannon 10 | . . . . . 1 . . 5 . 1 . . . . . . . 3 Ballistic Gun 35 | . 1 1 3 1 5 . . 8 . 1 1 1 4 1 2 . 2 4 Ballistic Cannon 9 | . 4 . . . 1 . . 4 . . . . . . . . . . Launcher 8 | . 1 . . . 2 1 . 2 . 1 . . 1 . . . . . Special Weapon 1 | . . . . . . . . . . . . . . . . . . 1 Impact Weapon 1 | . 1 . . . . . . . . . . . . . . . . . Slashing Weapon 1 | . . . . . . . . 1 . . . . . . . . . . Piercing Weapon 1 | . . . . . . . . 1 . . . . . . . . . . Special Melee Weapon 3 | . . . 1 . 1 . . . . . . . . . . 1 . . Unidentified Prototypes 19 | . 1 2 . . 1 . . 4 . . . . 6 . 5 . . . Corrupted Parts 2 | . . . . . . . . . . . . . . . . . 2 . System Corruption 5 | . . . . . . . . . . . . . . . . . 5 . Parts Lost 95 | . . . 1 . 1 . 4 17 . 1 . . 6 1 2 . 4 58 Power 13 | . . . 1 . . . . 3 . . . . . 1 1 . 1 6 Propulsion 11 | . . . . . . . 1 . . . . . 1 . . . . 9 Utility 36 | . . . . . . . 1 3 . 1 . . 4 . . . 1 26 Weapon 35 | . . . . . 1 . 2 11 . . . . 1 . 1 . 2 17 Highest Loss Streak 14 | . . . 1 . 1 . 4 7 . 1 . . 2 1 2 . 4 14 To Critical Strikes 3 | . . . . . . . . 1 . . . . . . 1 . . 1 Average Backups 15 | 5 9 15 14 18 18 17 11 13 13 13 13 13 16 18 17 17 17 15 Power . | . . . 1 2 2 2 1 . . . . . . . . . . . Propulsion 2 | 3 3 3 2 3 1 3 3 4 4 4 4 3 2 3 2 2 2 1 Utility 6 | . 1 6 6 10 9 7 4 5 6 4 4 4 5 7 6 7 7 6 Weapon 5 | 1 3 5 3 3 4 5 2 3 3 5 5 4 8 7 7 8 8 6 Tool/Special . | . . . . . . . . . . . . . . . . . . . Unused Backups 70 | . 5 . 17 . 6 3 8 9 . 1 . . 7 2 5 . . 7 Power 12 | . . . 5 . . . 2 2 . . . . . . 1 . . 2 Propulsion 19 | . 2 . 6 . . 1 2 1 . . . . 1 1 3 . . 2 Utility 29 | . . . 6 . 3 . 4 5 . 1 . . 6 1 1 . . 2 Weapon 10 | . 3 . . . 3 2 . 1 . . . . . . . . . 1 Tool/Special . | . . . . . . . . . . . . . . . . . . . Average Slot Usage (%) 92 | . 99 100 99 100 99 99 89 91 92 84 61 84 82 88 92 92 92 84 Engine 4 | . 14 14 13 . . . . 2 7 7 7 7 2 2 4 . . . Core 2 | . . . . 14 9 7 3 1 . . . . . 2 . . . 1 Reactor 1 | . . . . . . . 3 2 . . . . 3 1 1 6 5 3 Treads 5 | . . . 13 14 9 7 1 . . 7 7 6 . 6 6 6 6 8 Leg 3 | . 28 28 5 . . . . . . . . . . . . . . . Wheel 4 | . . . 9 14 9 7 7 7 6 . . . 5 . . . . . Device 10 | . 10 . 3 . 6 14 20 17 7 6 7 5 11 12 13 13 12 21 Storage 8 | . 14 14 13 14 9 7 6 7 7 7 7 7 6 6 6 6 6 4 Processor 12 | . . . . . 9 15 22 23 30 23 23 23 13 13 13 13 13 11 Hackware 3 | . . . . . 7 7 1 . . . . . 5 6 6 6 6 4 Protection 9 | . 3 13 11 14 11 7 1 4 7 7 7 8 10 15 19 20 20 5 Energy Gun 2 | . . . . 4 4 2 2 4 . . . . 5 . 2 . . 6 Energy Cannon 1 | . . . . . . . 4 5 7 7 . 3 . 1 . . . . Ballistic Gun 11 | . . 4 1 23 21 19 12 8 . . . 10 11 17 16 19 18 8 Ballistic Cannon 6 | . 26 23 22 . . . . 2 14 14 . 7 1 . . . . . Peak Build Rating 124 | 9 14 21 35 29 55 76 83 79 73 71 66 67 95 96 116 116 118 124 Average Rating 61 | 5 11 13 16 28 45 64 75 70 68 66 53 64 85 91 100 115 114 106 On Entrance 60 | . 9 11 14 28 28 47 66 81 68 72 67 66 63 93 92 116 116 110 Avg Prop Armor Cover (%) 8 | . . . 9 9 7 8 9 . . . . . . . . . . 7 Naked Turns . | . . . . . . . . . . . . . . . . . . . Heaviest Build 121 | 13 38 58 72 72 85 84 84 90 71 88 88 92 121 97 100 100 100 97 Greatest Support 103 | 20 20 20 40 16 16 12 28 28 70 70 70 70 70 70 80 80 80 103 Greatest Overweight (x) 7 | 1 1 2 4 4 6 6 6 3 2 1 1 2 5 1 1 1 1 7 Average Overweight (x) 2 | . . 1 2 4 4 6 2 1 1 . . 1 2 1 1 1 . . Largest Inventory Capacity 25 | 8 15 20 20 20 20 20 20 20 20 20 20 20 25 20 20 20 20 20 Average Capacity 19 | 7 11 16 17 20 20 20 18 20 20 20 20 20 20 20 20 20 20 19 Most Carried 20 | 7 15 18 20 20 20 20 20 20 20 20 20 20 20 20 20 20 20 20 Average Carried 18 | 5 9 15 14 19 19 19 16 19 19 19 19 19 19 19 19 20 19 18 Final Capacity 20 | 8 15 20 20 20 20 20 20 20 20 20 20 20 20 20 20 20 20 5 Final Carried 20 | 7 15 18 20 20 20 20 18 20 20 20 18 20 20 20 20 20 18 5 Class Distribution -------------------- 27% | Gunner 23% | Mutant 17% | Tank 12% | Scavenger-Tank 10% | Skirmisher Dominant Class ---------------- Mutant | -10/Materials Mutant | -10/Mines Mutant | -10/Exiles Mutant | -9/Mines Gunner | -8/Materials Skirmisher | -7/Factory Gunner | -7/Waste Gunner | -7/Factory Gunner | -7/Lower Caves Tank | -7/Lower Caves Mutant | -7/Data Miner Tank | -6/Proximity Caves Skirmisher | -6/Factory Tank | -6/Extension Scavenger-Tank | -6/Cetus Scavenger-Tank | -6/Archives Scavenger-Tank | -6/Hub_04(d) Scavenger-Tank | -5/Factory Resources | -11 -10 -10 -10 -9 -8 -7 -7 -7 -7 -7 -7 -6 -6 -6 -6 -6 -6 -5 ----------- Run | Yrd Mat Min Exi Min Mat Fac Was Fac Low Low Dat Pro Fac Ext Cet Arc Hub Fac Matter Collected 15117 | 270 466 528 682 104 1561 811 828 2320 265 869 . 290 2513 496 371 284 68 2391 Remotely . | . . . . . . . . . . . . . . . . . . . Salvage Created 17485 | 162 346 184 61 129 1595 1060 1508 2504 74 435 . 72 3047 643 204 338 325 4798 Parts 870 | 7 30 15 6 7 91 66 30 141 4 25 . 3 146 35 10 21 13 220 Haulers Intercepted 12 | . 2 . . . 6 . . 3 . . . . . . . . . 1 Recyclers Shooed 9 | . . 1 . . . 1 . 1 . . . . 1 . . . . 5 Parts Field Recycled . | . . . . . . . . . . . . . . . . . . . Retrieved Matter . | . . . . . . . . . . . . . . . . . . . Parts Self-Destructed 27 | . . . . . . . . . 3 21 . 3 . . . . . . Prevented 2 | . . . . . . . . . . 2 . . . . . . . . Parts Restored 3 | . . . . . 2 . . . . . . 1 . . . . . . Broken 3 | . . . . . 2 . . . . . . 1 . . . . . . Kills | -11 -10 -10 -10 -9 -8 -7 -7 -7 -7 -7 -7 -6 -6 -6 -6 -6 -6 -5 ------- Run | Yrd Mat Min Exi Min Mat Fac Was Fac Low Low Dat Pro Fac Ext Cet Arc Hub Fac Combat Hostiles Destroyed 267 | . 12 10 4 6 27 18 6 40 1 13 . 2 50 7 2 3 2 64 Guns 175 | . . 1 . 6 24 14 5 21 . 1 . 2 33 7 2 3 1 55 Cannons 48 | . 11 2 3 . 2 1 1 13 1 6 . . 6 . . . . 2 AOE 38 | . 1 7 1 . 1 3 . 6 . 6 . . 9 . . . . 4 Classes Destroyed 25 | 2 4 . 2 1 4 2 1 4 . 2 . 1 2 . . . . . Worker 25 | . . . . . 1 2 . 8 . . . . 5 . . . 3 6 Builder 13 | . . . . . 1 1 . 2 . . . . . . . . 2 7 Tunneler 8 | 4 . . . . 1 . . 1 . . . . 1 . . . . 1 Hauler 12 | . 2 . . . 6 . . 3 . . . . . . . . . 1 Recycler 12 | 1 . 1 . . . 1 . 5 . . . . 1 1 . . 1 1 Mechanic 4 | . . . . . . . . . . . . . 1 . . . . 3 Operator 7 | . . . . . . 1 . 1 . . . . 1 . . 3 . 1 Watcher 25 | . 3 . . . 5 4 . 4 . . . . 3 . 2 . . 4 Swarmer 42 | . 5 6 . 5 6 3 . 6 . 5 . . 4 . . . . 2 Saboteur 1 | . . . . . . . . . . . . . 1 . . . . . Grunt 97 | . 7 4 . . 10 8 . 12 . 5 . . 18 . . . . 33 Brawler 12 | . . . . 1 . . . 1 . . . . 4 . . . . 6 Duelist 11 | . . . . . . . . 2 . 1 . . 7 . . . . 1 Protector 2 | . . . . . . . . 1 . . . . 1 . . . . . Sentry 34 | . . . . . 8 2 . 5 1 . . . 4 5 . 3 . 6 Specialist 3 | . . . . . . . . 2 . . . . 1 . . . . . Hunter 13 | . . . . . 3 . . 2 . . . 1 2 . . . 1 4 Programmer 34 | . . . . . . 5 . 8 . . . . 8 . . . 1 12 Heavy 1 | . . . . . . . . 1 . . . . . . . . . . Behemoth 2 | . . . . . . . . . . . . 1 . 1 . . . . Compactor 6 | . . . . . . . 6 . . . . . . . . . . . Cetus Guard 2 | . . . . . . . . . . . . . . . 2 . . . Zionite 5 | . . . 5 . . . . . . . . . . . . . . . Decomposer 1 | . . . . . . . . . 1 . . . . . . . . . Master Thief 1 | . . . . . . . . . . 1 . . . . . . . . Assembled 4 | . . . 4 . . . . . . . . . . . . . . . Thug 1 | . . . . . . . . . . . . . . 1 . . . . Mutant 1 | . . . . . . . . . . 1 . . . . . . . . Best Kill Streak 11 | 2 4 3 4 3 6 6 2 6 1 4 . 2 6 3 3 3 7 11 Combat Bots Only 9 | . 3 3 3 3 4 5 2 5 1 4 . 2 5 2 2 1 1 9 Max Kills in Single Turn 6 | 1 2 3 2 1 2 5 1 3 1 3 . 1 3 1 2 2 5 6 Gunslinging 1 | . . . . . . 1 . 1 . . . . . . 1 . . 1 Exploded 3 | . 1 3 1 . 1 3 . 3 . 3 . . 2 . . . . 3 Melee . | . . . . . . . . . . . . . . . . . . . Uniques/NPCs Destroyed 4 | . . . 4 . . . . . . . . . . . . . . . 8R-AWN (-10/Exiles) EX-HEX (-10/Exiles) EX-DEC (-10/Exiles) EX-BIN (-10/Exiles) Combat | -11 -10 -10 -10 -9 -8 -7 -7 -7 -7 -7 -7 -6 -6 -6 -6 -6 -6 -5 -------- Run | Yrd Mat Min Exi Min Mat Fac Was Fac Low Low Dat Pro Fac Ext Cet Arc Hub Fac Hostile Shots Fired 1794 | . 33 33 33 18 73 55 4 400 6 24 . 31 298 60 26 23 61 616 Missed 516 | . 10 10 13 4 15 18 . 141 . 7 . 9 99 22 8 7 9 144 Hits 1278 | . 23 23 20 14 58 37 4 259 6 17 . 22 199 38 18 16 52 472 Melee 59 | . . . . 3 . . 4 4 . 5 . . 30 . . . . 13 Projectile 1219 | . 23 23 20 11 58 37 . 255 6 12 . 22 169 38 18 16 52 459 AOE 4 | . . 1 . . . . . . . . . . 1 . . . . 2 Critical Strikes 86 | . . . 3 1 6 2 2 4 . . . 2 16 . 6 . 9 35 Actively Blocked 3 | . . . . . 1 . . . . . . . . . . . . 2 Part Disruptions 3 | . . . . . . . . 1 . . . . . . . . 2 . Damage Taken 22888 | . 202 287 287 162 806 502 234 3124 68 217 . 488 3709 360 453 372 1804 9813 Core 2115 | . 24 7 25 57 126 92 9 446 10 21 . . 196 40 14 . 45 1003 Absorbed by Shields 493 | . . . . . . . . . . . . . 92 71 78 . . 252 Reduced by Siege Mode 251 | . . . . . . . . . . . . . . . . 12 . 239 Redirected to Shielding 74 | . . . . . 25 . . . . . . . . . . . . 49 Ignored by Resistances 523 | . . . . . 20 20 . . . . . . 329 36 . 10 . 108 Regen/Repaired (Parts) 2613 | . 10 . . . 167 . . . . . . . 652 24 32 19 4 1705 Core Remaining (%) 62 | 100 . . . 54 77 . . . . . . 17 . . . . 65 . Volleys Fired 1015 | 16 38 18 32 14 88 67 30 169 21 25 . 11 162 43 14 22 9 236 Largest 3 | 2 2 2 2 2 3 3 3 3 3 3 . 3 3 3 3 3 3 3 Hottest 561 | 100 66 66 66 46 115 130 147 195 145 145 . 163 198 96 240 100 100 561 Shots Fired 2318 | 32 76 35 53 28 242 157 78 348 33 55 . 30 399 89 39 66 19 539 Gun 1773 | 32 . 16 22 28 214 135 62 209 17 5 . 13 324 69 38 66 17 506 Cannon 483 | . 74 15 28 . 23 21 11 128 16 47 . 17 55 20 . . . 28 Launcher 57 | . 2 4 3 . 5 1 5 11 . 3 . . 20 . 1 . 2 . Special 5 | . . . . . . . . . . . . . . . . . . 5 Kinetic 1544 | . 74 31 50 28 217 124 47 180 28 36 . 24 222 69 34 66 16 298 Thermal 606 | 32 . . . . 10 32 26 131 5 16 . 6 134 20 4 . 1 189 Explosive 34 | . 2 4 3 . 5 1 5 9 . 2 . . 1 . . . 2 . Electromagnetic 129 | . . . . . 10 . . 28 . 1 . . 42 . 1 . . 47 Robot Hit Streak 35 | 3 4 15 7 9 11 10 21 27 8 9 . 5 23 35 12 18 14 33 Robot Miss Streak 7 | 3 5 7 2 3 5 6 3 6 3 4 . 4 6 2 2 3 2 3 Penetration Max 1 | . . . . . . 1 . 1 . 1 . . 1 . 1 1 1 1 Secondary Targets 26 | . . . . 1 . 3 . 3 . . . . 3 . 1 . . 15 Max Gunslinging Chain 2 | . . . . 1 . 2 . 1 . . . . 1 . 1 . . 1 Shots Hit Robots 1429 | 16 34 20 33 18 151 78 61 207 15 24 . 15 226 58 31 53 9 380 Core Hits 729 | 5 18 13 17 7 72 46 21 129 2 19 . 7 148 16 13 16 10 170 Critical Kills 36 | . . . . . 2 3 3 1 . 1 . . 2 1 . 2 . 21 Critical Parts Destroyed 57 | . . . 3 . 5 6 1 1 1 1 . . 5 2 2 5 . 25 Critical Strikes 123 | 3 2 . 4 . 7 9 7 3 1 3 . 1 11 3 3 9 . 57 Burn 12 | 3 . . . . . . . . . . . . 4 . . . . 5 Destroy 103 | . . . 3 . 7 9 7 2 1 2 . . 7 3 3 9 . 50 Blast 6 | . 2 . 1 . . . . 1 . 1 . 1 . . . . . . Corrupt 2 | . . . . . . . . . . . . . . . . . . 2 Melee Attacks 12 | . 2 . 4 . 2 . . 1 . . . . . . . 3 . . Impact 2 | . 2 . . . . . . . . . . . . . . . . . Slashing 1 | . . . . . . . . 1 . . . . . . . . . . Piercing . | . . . . . . . . . . . . . . . . . . . Sneak Attacks 9 | . . . 4 . 2 . . . . . . . . . . 3 . . Combat Hostiles . | . . . . . . . . . . . . . . . . . . . Follow-up Attacks . | . . . . . . . . . . . . . . . . . . . Damage Inflicted 43415 | 199 785 752 680 272 2975 2120 1775 6355 206 1201 . 486 7505 1318 1029 1461 1065 13231 Guns 29680 | 199 . 238 177 272 2446 1707 1072 3392 48 63 . 151 4755 1290 917 1461 281 11211 Cannons 5580 | . 714 142 367 . 282 91 215 1285 158 659 . 335 792 28 . . . 512 Explosions 8133 | . 71 372 136 . 247 322 488 1678 . 479 . . 1958 . 112 . 762 1508 Melee . | . . . . . . . . . . . . . . . . . . . Ramming 22 | . . . . . . . . . . . . . . . . . 22 . Kinetic 24935 | . 714 380 544 272 2459 1399 655 2854 124 449 . 343 3564 1290 871 1461 281 7275 Thermal 10904 | 199 . . . . 210 399 632 2156 82 357 . 143 1905 28 46 . . 4747 Explosive 3312 | . 71 372 136 . 201 322 488 828 . 286 . . 315 . . . 136 157 Electromagnetic 4242 | . . . . . 105 . . 517 . 109 . . 1721 . 112 . 626 1052 Impact . | . . . . . . . . . . . . . . . . . . . Slashing . | . . . . . . . . . . . . . . . . . . . Piercing . | . . . . . . . . . . . . . . . . . . . Highest Corruption 27 | . . . . . . 3 18 24 24 24 24 24 4 4 . . 27 26 Average Corruption 12 | . . . . . . 1 12 19 24 24 24 24 2 1 . . 3 7 Corruption Purged 25 | . . . . . . . 15 . . . . . 6 4 . . . . Corruption Blocked . | . . . . . . . . . . . . . . . . . . . Effects 545 | . . . . . . 22 17 165 66 80 8 55 54 . . . 1 77 Message Errors 132 | . . . . . . 2 6 53 16 18 2 14 8 . . . . 13 Matter Fused 114 | . . . . . . 5 4 24 10 20 1 12 20 . . . . 18 Heat Flow Errors 68 | . . . . . . 5 1 21 7 9 1 9 3 . . . . 12 Energy Discharges 57 | . . . . . . 1 1 11 10 14 2 7 6 . . . . 5 Parts Rejected 3 | . . . . . . . . 1 . . . . . . . . . 2 Parts Fused 11 | . . . . . . 1 . 5 2 . . . 2 . . . . 1 Data Loss (minor) 75 | . . . . . . 4 2 19 11 10 1 10 9 . . . 1 8 Data Loss (major) 26 | . . . . . . 2 1 10 3 3 1 1 3 . . . . 2 Misfires 19 | . . . . . . 2 . 3 5 4 . . 1 . . . . 4 Alerts 9 | . . . . . . . . 4 1 1 . 1 1 . . . . 1 Misdirections 4 | . . . . . . . . 2 . . . . . . . . . 2 Weapon Failures 27 | . . . . . . . 2 12 1 1 . 1 1 . . . . 9 Overload Shots 85 | . . . . . . . . . . . . . 31 5 1 . 1 47 Effects 5 | . . . . . . . . . . . . . 1 1 1 . . 2 Energy Bleed 2 | . . . . . . . . . . . . . 1 . 1 . . . Heat Surge 3 | . . . . . . . . . . . . . . 1 . . . 2 Overflow Damage 640 | . 1 . 1 . 24 . . 150 34 141 . . 39 . 1 . 43 206 Projectiles 121 | . 1 . 1 . . . . 23 34 40 . . 22 . . . . . Explosions 512 | . . . . . 24 . . 127 . 101 . . 17 . 1 . 36 206 Melee 7 | . . . . . . . . . . . . . . . . . 7 . Knockbacks 21 | . 3 1 3 . 2 . . 1 1 6 . 1 3 . . . . . Impact . | . . . . . . . . . . . . . . . . . . . Kinetic 19 | . 2 1 3 . 1 . . 1 1 6 . 1 3 . . . . . Secondary 2 | . 1 . . . 1 . . . . . . . . . . . . . Self-Inflicted Damage 781 | . . . . . 37 . 49 83 . 5 . . 179 . . . 70 358 Shots 19 | . . . . . 1 . 2 2 . 1 . . 6 . . . 1 6 Rammed 1 | . . . . . . . . . . . . . . . . . 1 . Targets Rammed 1 | . . . . . . . . . . . . . . . . . 1 . Kicked . | . . . . . . . . . . . . . . . . . . . Crushed . | . . . . . . . . . . . . . . . . . . . Highest Temperature 556 | 241 36 78 90 147 375 436 410 556 270 458 207 328 398 244 229 145 60 437 Average Temperature 92 | 86 8 27 29 56 87 98 146 113 105 126 110 143 102 60 85 65 24 73 Received Heat Transfer 4882 | . 24 115 38 . 333 147 . 645 36 45 . 24 728 73 . 18 . 2656 Effects 32 | . . . . . 1 4 2 11 . 2 . 2 8 . . . . 2 Shutdowns 4 | . . . . . . 1 . 2 . . . . . . . . . 1 Energy Bleed 7 | . . . . . 1 . 2 1 . . . 1 2 . . . . . Interference 17 | . . . . . . 3 . 6 . 1 . 1 6 . . . . . Matter Decay 1 | . . . . . . . . . . . . . . . . . . 1 Damage (minor) 2 | . . . . . . . . 1 . 1 . . . . . . . . Damage (major) 1 | . . . . . . . . 1 . . . . . . . . . . Siege Activations 11 | . . . . . . . . . . . . . . . . 2 . 9 Total Turns 209 | . . . . . . . . . . . . . . . . 27 . 182 Longest Duration 59 | . . . . . . . . . . . . . . . . 17 . 59 Martial Activations . | . . . . . . . . . . . . . . . . . . . Shielding Activations . | . . . . . . . . . . . . . . . . . . . Robots Disrupted . | . . . . . . . . . . . . . . . . . . . Combat Hostiles . | . . . . . . . . . . . . . . . . . . . Robots Corrupted 5 | . . . . . . . . . . . . . 3 . . . 1 1 Combat Hostiles 4 | . . . . . . . . . . . . . 2 . . . 1 1 Parts Fried 22 | . . . . . . . . 4 . . . . 9 2 1 . 4 2 Impact Corruptions 1 | . . . . . . . . . . . . . . . . . 1 . Robots Melted 2 | 1 . . . . . . . . . . . . . . . . . 1 Combat Hostiles 1 | . . . . . . . . . . . . . . . . . . 1 Parts Melted 26 | 5 . . . . . 2 1 7 . . . . 6 . . . . 5 Heat Transferred 14817 | 814 . . . . 272 711 1246 2743 111 520 . 200 2739 37 74 . . 5350 Parts Sabotaged 4 | . . . . . . . . . . . . . 2 . . . . 2 Parts Stolen 2 | . . . . . . . . . . 2 . . . . . . . . Parts Stripped . | . . . . . . . . . . . . . . . . . . . Power Chain Reactions 10 | . . . . . 1 . . 2 . 1 . . 3 . . . . 3 Alert | -11 -10 -10 -10 -9 -8 -7 -7 -7 -7 -7 -7 -6 -6 -6 -6 -6 -6 -5 ------- Run | Yrd Mat Min Exi Min Mat Fac Was Fac Low Low Dat Pro Fac Ext Cet Arc Hub Fac Maximum Alert Level 5 | . . . . . 1 1 . 3 . . . . 4 2 . 1 3 5 Low Security (%) 59 | 100 100 100 . 100 67 97 100 32 . . . . 41 39 100 98 55 . Level 1 15 | . . . . . 32 2 . 8 . . . . 13 51 . 1 43 1 Level 2 12 | . . . . . . . . 24 . . . . 22 9 . . . 52 Level 3 8 | . . . . . . . . 35 . . . . 20 . . . 1 17 Level 4 2 | . . . . . . . . . . . . . 2 . . . . 18 Level 5 1 | . . . . . . . . . . . . . . . . . . 11 High Security . | . . . . . . . . . . . . . . . . . . . Max Security . | . . . . . . . . . . . . . . . . . . . Peak Influence 2143 | 5 174 140 . 154 290 210 87 894 . . . . 1132 554 173 206 791 2143 Initial 554 | . . 49 . . . 73 71 . . . . . . 554 167 36 6 387 Average 300 | 2 95 24 . 34 181 64 14 453 . . . . 404 257 112 103 166 937 Influence Increases 12213 | 25 646 311 . 274 1019 683 26 1620 20 331 . 60 1875 645 301 245 1075 3057 Destroy 0b10 Robot/C 5840 | . 240 200 . 200 560 360 . 880 20 260 . 40 980 340 160 80 240 1280 Destroy 0b10 Robot/NC 560 | 25 25 5 . . 70 45 . 120 . . . . 60 30 10 15 35 120 Destroy Leader 1286 | . 70 40 . 30 192 108 . 262 . 20 . 20 206 46 . . 62 230 Allied During Kill 555 | . . 6 . 14 7 . . 14 . 51 . . . 129 110 87 137 . Successful Hack 652 | . 42 . . . 42 92 . 83 . . . . 117 46 . . 9 221 Select Force Hacks 80 | . 30 . . . . . . . . . . . . . . . 50 . Disable Machine 1185 | . 15 30 . 15 60 45 . 120 . . . . 270 15 15 45 180 375 Anti-Garrison Action 150 | . . . . . . . . . . . . . . . . . 150 . Destroy Structure 1170 | . 29 30 . . 43 18 26 111 . . . . 167 24 6 18 212 486 Partial Spotted 45 | . . . . . 15 . . . . . . . 15 . . . . 15 Lose Combat Pursuer 690 | . 195 . . 15 30 15 . 30 . . . . 60 15 . . . 330 Influence Decreases 10080 | 25 517 438 2 274 857 641 230 860 780 218 113 60 743 1478 510 316 303 1715 Entered New Map 1880 | . . 80 2 . . 89 133 . 282 . 113 . . 578 132 54 13 404 Time Decay 6342 | 25 517 358 . 262 687 436 57 520 498 158 . 60 663 660 278 262 170 731 Lost Part 920 | . . . . . . . 40 170 . . . . 60 10 20 . 40 580 Lost Ally 382 | . . . . 12 20 10 . 20 . 60 . . 20 80 80 . 80 . Purge Threat 556 | . . . . . 150 106 . 150 . . . . . 150 . . . . Squads Dispatched 93 | . 4 . . . 5 7 . 25 . . . . 19 . . . 6 27 Investigation 13 | . 3 . . . 1 . . 3 . . . . 4 . . . 1 1 Extermination 25 | . . . . . . 4 . 7 . . . . 8 . . . 1 5 Reinforcement 20 | . 1 . . . 4 3 . 6 . . . . . . . . 2 4 Assault 23 | . . . . . . . . 3 . . . . 4 . . . 2 14 Garrison 12 | . . . . . . . . 6 . . . . 3 . . . . 3 Intercept . | . . . . . . . . . . . . . . . . . . . Searches Triggered . | . . . . . . . . . . . . . . . . . . . Unchained Authorized 1 | . . . . . . . . . . . . . . 1 . . . . Data Miner Redirects 9 | . . . . . . . . . . . . . 3 . . . . 6 Construction Impeded 3 | . . . . . 1 . . 1 . . . . . . . . . 1 Haulers Reinforced 2 | . . . . . . . . 1 . . . . . . . . . 1 Active Scanning Responses . | . . . . . . . . . . . . . . . . . . . Cargo Convoy Interrupts 1 | . . . . . . . . . . . . . 1 . . . . . Stealth | -11 -10 -10 -10 -9 -8 -7 -7 -7 -7 -7 -7 -6 -6 -6 -6 -6 -6 -5 --------- Run | Yrd Mat Min Exi Min Mat Fac Was Fac Low Low Dat Pro Fac Ext Cet Arc Hub Fac Distress Signals 20 | . 1 . . . 3 3 . 2 . . . . 2 2 2 . 3 2 Communications Jammed 17 | . . . . . . . . 3 . . . . . . . . . 14 Distress Signals 16 | . . . . . . . . 2 . . . . . . . . . 14 Times Spotted 485 | . 27 21 25 11 42 27 6 58 1 16 . 2 72 21 9 8 14 125 Peak Tracking Total 19 | . 3 19 11 3 5 4 2 6 1 5 . 2 6 4 5 1 10 11 Tactical Retreats 44 | . 11 1 9 1 2 1 . 2 . . . . 4 1 . . . 12 Traps | -11 -10 -10 -10 -9 -8 -7 -7 -7 -7 -7 -7 -6 -6 -6 -6 -6 -6 -5 ------- Run | Yrd Mat Min Exi Min Mat Fac Was Fac Low Low Dat Pro Fac Ext Cet Arc Hub Fac Traps Triggered 21 | . 2 . . . . 2 . 4 . . . . 4 9 . . . . Indirectly 2 | . . . . . . . . . . . . . 2 . . . . . Trap Hack Attempts 42 | . . . . . 42 . . . . . . . . . . . . . Triggered . | . . . . . . . . . . . . . . . . . . . Disarmed . | . . . . . . . . . . . . . . . . . . . Reprogrammed 5 | . . . . . 5 . . . . . . . . . . . . . Reused . | . . . . . . . . . . . . . . . . . . . Traps Extracted 4 | . . . . . 4 . . . . . . . . . . . . . Installed . | . . . . . . . . . . . . . . . . . . . Triggered . | . . . . . . . . . . . . . . . . . . . Most Traps Carried 4 | . . . . . 4 . . . . . . . . . . . . . Machines | -11 -10 -10 -10 -9 -8 -7 -7 -7 -7 -7 -7 -6 -6 -6 -6 -6 -6 -5 ---------- Run | Yrd Mat Min Exi Min Mat Fac Was Fac Low Low Dat Pro Fac Ext Cet Arc Hub Fac Machines Disabled 95 | . 1 2 10 1 4 3 . 8 . 1 . 1 18 4 1 3 13 25 Max in Single Turn 10 | . 1 1 2 1 1 1 . 3 . 1 . 1 5 1 1 1 10 6 Garrison Access 5 | . . . . . 1 1 . . . . . . 2 . . . 1 . Network Hub 2 | . . . . . . . . . . . . . . . . . 2 . Machines Repaired . | . . . . . . . . . . . . . . . . . . . Machines Dismantled . | . . . . . . . . . . . . . . . . . . . Machines Sabotaged 1 | . . . . . . . . . . . . . . . . . 1 . Overloaded Fab Kills . | . . . . . . . . . . . . . . . . . . . Hacking | -11 -10 -10 -10 -9 -8 -7 -7 -7 -7 -7 -7 -6 -6 -6 -6 -6 -6 -5 --------- Run | Yrd Mat Min Exi Min Mat Fac Was Fac Low Low Dat Pro Fac Ext Cet Arc Hub Fac Machines Accessed 115 | . 10 1 1 . 13 15 . 19 . . 4 . 26 10 3 . 1 12 Terminals 58 | . 7 . . . 7 6 . 9 . . . . 11 8 3 . 1 6 Fabricators 12 | . . . . . . 3 . 4 . . . . 4 . . . . 1 Repair Stations 8 | . 1 . . . 1 . . 1 . . . . 3 . . . . 2 Recycling Units 17 | . 2 . . . 2 3 . 3 . . . . 3 2 . . . 2 Scanalyzers 9 | . . . . . 2 1 . 1 . . . . 4 . . . . 1 Garrison Access 5 | . . . . . 1 2 . 1 . . . . 1 . . . . . Total Hacks 453 | . 40 1 1 . 69 50 . 57 . . 30 . 73 41 7 . 7 77 Successful 261 | . 26 1 1 . 52 20 . 25 . . 30 . 38 21 . . 4 43 Failed 190 | . 14 . . . 16 29 . 32 . . . . 35 20 7 . 3 34 Catastrophic 47 | . 3 . . . . 10 . 9 . . . . 5 7 1 . 1 11 Database Lockouts 2 | . . . . . 1 1 . . . . . . . . . . . . Manual 201 | . 26 . . . 25 19 . 25 . . . 1 37 26 1 . 6 35 Terminals 224 | . 32 . . . 25 27 . 30 . . . . 35 29 7 . 7 32 Fabricators 34 | . . . . . . 6 . 10 . . . . 10 . . . . 8 Repair Stations 37 | . 2 . . . 11 . . 2 . . . . 4 . . . . 18 Recycling Units 66 | . 6 . . . 6 9 . 7 . . . . 13 12 . . . 13 Scanalyzers 51 | . . . . . 26 3 . 6 . . . . 10 . . . . 6 Garrison Access 9 | . . . . . 1 5 . 2 . . . . 1 . . . . . Terminal Hacks 71 | . 8 1 1 . 5 7 . 3 . . 30 . 4 8 . . 2 2 Record 12 | . . . 1 . . . . . . . 11 . . . . . . . Part Schematic 12 | . . . . . . 1 . . . . 11 . . . . . . . Robot Schematic 5 | . . . . . . . . . . . 5 . . . . . . . Robot Analysis 10 | . 2 . . . 2 1 . . . . . . 2 3 . . . . Prototype ID Bank 7 | . 2 . . . 1 . . . . . 3 . . 1 . . . . Open Door 2 | . . 1 . . . . . . . . . . 1 . . . . . Branch Access Points 1 | . . . . . . 1 . . . . . . . . . . . . Terminal Index 4 | . 1 . . . 1 . . 1 . . . . . . . . 1 . Fabricator Index 1 | . . . . . . . . . . . . . . . . . . 1 Alert Level 1 | . . . . . . . . . . . . . . 1 . . . . Unreport Threat 5 | . . . . . 1 2 . 1 . . . . . 1 . . . . Locate Traps 9 | . 3 . . . . . . 1 . . . . 1 2 . . 1 1 Registered Components 1 | . . . . . . 1 . . . . . . . . . . . . Zone Layout 1 | . . . . . . 1 . . . . . . . . . . . . Fabricator Hacks 9 | . . . . . . . . 2 . . . . 5 . . . . 2 Network Status 1 | . . . . . . . . . . . . . . . . . . 1 Load Schematic 4 | . . . . . . . . 1 . . . . 2 . . . . 1 Build 4 | . . . . . . . . 1 . . . . 3 . . . . . Repair Station Hacks 27 | . 2 . . . 10 . . 1 . . . . 2 . . . . 12 Scan Component 15 | . 1 . . . 5 . . 1 . . . . 1 . . . . 7 Repair 12 | . 1 . . . 5 . . . . . . . 1 . . . . 5 Recycling Unit Hacks 14 | . 2 . . . 2 . . 2 . . . . 4 2 . . . 2 Retrieve Matter 2 | . . . . . . . . . . . . . 1 . . . . 1 Retrieve Components 12 | . 2 . . . 2 . . 2 . . . . 3 2 . . . 1 Scanalyzer 36 | . . . . . 22 1 . 5 . . . . 4 . . . . 4 Insert Component 14 | . . . . . 10 . . 1 . . . . 2 . . . . 1 Analyze 14 | . . . . . 10 . . 1 . . . . . . . . . 3 Retrieve Study 8 | . . . . . 2 1 . 3 . . . . 2 . . . . . Garrison Access Hacks 3 | . . . . . 1 1 . . . . . . 1 . . . . . Seal Access 3 | . . . . . 1 1 . . . . . . 1 . . . . . Unauthorized Hacks 101 | . 14 . . . 12 11 . 12 . . . . 18 11 . . 2 21 Terminals 74 | . 12 . . . 9 7 . 10 . . . . 13 8 . . 2 13 Track 1 | . 1 . . . . . . . . . . . . . . . . . Assimilate 9 | . 1 . . . 1 1 . 2 . . . . 3 . . . . 1 Botnet 23 | . 4 . . . 2 2 . 2 . . . . 4 3 . . 1 5 Operators 4 | . 1 . . . 1 . . 1 . . . . . . . . . 1 Skim 36 | . 5 . . . 5 4 . 5 . . . . 6 5 . . . 6 Sabotage 1 | . . . . . . . . . . . . . . . . . 1 . Fabricators 11 | . . . . . . 4 . 2 . . . . 1 . . . . 4 Report 2 | . . . . . . 1 . . . . . . . . . . . 1 Prioritize 1 | . . . . . . . . 1 . . . . . . . . . . Liberate 5 | . . . . . . 2 . 1 . . . . 1 . . . . 1 Haulers 2 | . . . . . . 1 . . . . . . . . . . . 1 Recompile 1 | . . . . . . . . . . . . . . . . . . 1 Repair Stations . | . . . . . . . . . . . . . . . . . . . Recycling Units 16 | . 2 . . . 3 . . . . . . . 4 3 . . . 4 Monitor 1 | . . . . . . . . . . . . . . . . . . 1 Reject 5 | . . . . . 1 . . . . . . . 1 2 . . . 1 Recyclers 2 | . . . . . . . . . . . . . 1 . . . . 1 Mask 7 | . 1 . . . 2 . . . . . . . 2 1 . . . 1 Tunnel 1 | . 1 . . . . . . . . . . . . . . . . . Scanalyzers . | . . . . . . . . . . . . . . . . . . . Garrison Access . | . . . . . . . . . . . . . . . . . . . Data Cores Recovered 2 | . . . . . . . . . . . . . . 1 . . . 1 Used . | . . . . . . . . . . . . . . . . . . . Hacking Detections 101 | . 10 . . . 10 15 . 19 . . . . 23 10 3 . 1 10 Full Trace Events 9 | . 2 . . . 1 . . 2 . . . . 4 . . . . . Feedback Events 1 | . . . . . . . . . . . . . 1 . . . . . Corruption 1 | . . . . . . . . . . . . . 1 . . . . . Feedback Blocked . | . . . . . . . . . . . . . . . . . . . Robot Schematics Acquired 5 | . . . . . . . . . . . 5 . . . . . . . Robots Built 1 | . . . . . . . . . . . . . 1 . . . . . Authchips . | . . . . . . . . . . . . . . . . . . . Time 50 | . . . . . . . . . . . . . 50 . . . . . Total Robot Build Rating 5 | . . . . . . . . . . . . . 5 . . . . . Part Schematics Acquired 23 | . . . . . 9 1 . 1 . . 11 . . . . . . 1 Parts Built 2 | . . . . . . . . . . . . . 2 . . . . . Authchips . | . . . . . . . . . . . . . . . . . . . Time 323 | . . . . . . . . 95 . . . . 228 . . . . . Total Part Build Rating 10 | . . . . . . . . . . . . . 10 . . . . . Part Studies Acquired 8 | . . . . . 2 1 . 3 . . . . 2 . . . . . Parts Repaired 12 | . 1 . . . 5 . . . . . . . 1 . . . . 5 Time 892 | . 26 . . . 445 . . . . . . . 22 . . . . 399 Parts Recycled . | . . . . . . . . . . . . . . . . . . . Recycled Matter . | . . . . . . . . . . . . . . . . . . . Retrieved Matter 14 | . . . . . . . . . . . . . 14 . . . . . Retrieved Components 62 | . 15 . . . 16 . . 9 . . . . 20 2 . . . . Parts Scanalyzed 12 | . . . . . 9 . . 1 . . . . 1 . . . . 1 Part Schematics Acquired 11 | . . . . . 9 . . 1 . . . . . . . . . 1 Parts Damaged 4 | . . . . . 4 . . . . . . . . . . . . . Bothacking | -11 -10 -10 -10 -9 -8 -7 -7 -7 -7 -7 -7 -6 -6 -6 -6 -6 -6 -5 ------------ Run | Yrd Mat Min Exi Min Mat Fac Was Fac Low Low Dat Pro Fac Ext Cet Arc Hub Fac Used RIF Installer . | . . . . . . . . . . . . . . . . . . . Robots Hacked 7 | . . . 4 . 1 . . . . . . . . . . 2 . . Non-combat 5 | . . . 3 . 1 . . . . . . . . . . 1 . . Combat 2 | . . . 1 . . . . . . . . . . . . 1 . . Robot Hacks Applied 9 | . . . 4 . 2 . . . . . . . . . . 3 . . parse_system 6 | . . . 4 . . . . . . . . . . . . 2 . . no_distress 1 | . . . . . 1 . . . . . . . . . . . . . check_alert 2 | . . . . . 1 . . . . . . . . . . 1 . . Relay Couplers Released 2 | . . . . . . . . . . . . . 2 . . . . . Machine Destruction 2 | . . . . . . . . . . . . . 2 . . . . . Fabnet Peak Effective % . | . . . . . . . . . . . . . . . . . . . Robots Rewired 6 | . . . . . . . . . . 3 . . . 3 . . . . Allies Hacked . | . . . . . . . . . . . . . . . . . . . Hacks Repelled . | . . . . . . . . . . . . . . . . . . . Allies | -11 -10 -10 -10 -9 -8 -7 -7 -7 -7 -7 -7 -6 -6 -6 -6 -6 -6 -5 -------- Run | Yrd Mat Min Exi Min Mat Fac Was Fac Low Low Dat Pro Fac Ext Cet Arc Hub Fac Total Allies 27 | . . 3 . . 1 . . 2 . 3 . 1 2 10 5 . . . Largest Group 8 | . . 3 2 2 1 1 . 1 1 4 1 2 2 6 8 5 4 . Highest-Rated Group 685 | . . 40 32 32 16 10 . 10 10 97 10 106 33 292 685 536 384 . Highest-Rated Ally 159 | . . 16 16 16 16 10 . 10 10 30 10 96 26 159 159 152 96 . Total Orders 78 | . . . 6 2 18 22 . 4 2 3 . 2 10 1 3 4 1 . STAY 38 | . . . 1 1 9 11 . 2 1 1 . 1 5 1 2 2 1 . FOLLOW 33 | . . . 1 1 9 11 . 1 1 1 . 1 4 . 1 2 . . GUARD 1 | . . . . . . . . . . 1 . . . . . . . . EXPLORE 1 | . . . . . . . . . . . . . 1 . . . . . RETURN 5 | . . . 4 . . . . 1 . . . . . . . . . . Ally Attacks 382 | . . 7 163 12 6 . . 15 . 13 . 9 . 82 40 3 32 . Total Damage 6784 | . . 61 957 154 80 . . 627 . 376 . 407 . 1841 988 134 1159 . Kills 52 | . . . 7 4 1 . . 5 . 2 . . . 15 6 1 11 . Allies Corrupted . | . . . . . . . . . . . . . . . . . . . Allies Melted . | . . . . . . . . . . . . . . . . . . . Turrets Deployed 1 | . . . . . . . . 1 . . . . . . . . . . Intel | -11 -10 -10 -10 -9 -8 -7 -7 -7 -7 -7 -7 -6 -6 -6 -6 -6 -6 -5 ------- Run | Yrd Mat Min Exi Min Mat Fac Was Fac Low Low Dat Pro Fac Ext Cet Arc Hub Fac Active Infowar (turns) 18614 | 14 1928 5 . . 529 2070 48 3052 1372 1 . . 3682 2017 459 573 415 2449 Optics 394 | . . . . . . . . . . . . . 394 . . . . . Sensors 15879 | . . 5 . . 61 2070 48 2916 1372 1 . . 3682 2015 459 573 415 2262 Terrain 2412 | 14 1928 . . . 468 . . . . . . . . 2 . . . . Jamming 2711 | . . . . . . . . 1037 . . . . . . . . . 1674 Robot Analysis Total 10 | . 2 . . . 2 1 . . . . . . 2 3 . . . . Derelict Logs Recovered 7 | . . 1 . 2 . . . . 2 1 . 1 . . . . . . Drone Launches 26 | . . . 22 . . . . 3 . . . . 1 . . . . . Drone Recoveries 25 | . . . 22 . . . . 3 . . . . . . . . . . Exploration | -11 -10 -10 -10 -9 -8 -7 -7 -7 -7 -7 -7 -6 -6 -6 -6 -6 -6 -5 ------------- Run | Yrd Mat Min Exi Min Mat Fac Was Fac Low Low Dat Pro Fac Ext Cet Arc Hub Fac Turns Passed 38670 | 145 2498 1976 2620 1112 7175 2451 336 3308 1372 1702 162 1197 4867 2498 617 573 446 3615 Spaces Moved 19004 | 70 1222 907 1456 629 3423 1208 178 2100 1021 704 97 493 2503 1033 223 164 169 1404 Core 19 | 7 . . . . . . . . . . . . . . . . . 12 Treads 4570 | . . . 169 . . . . . 69 704 97 451 239 1033 223 164 169 1252 Legs 2385 | 63 1222 907 193 . . . . . . . . . . . . . . . Wheels 12030 | . . . 1094 629 3423 1208 178 2100 952 . . 42 2264 . . . . 140 Hover . | . . . . . . . . . . . . . . . . . . . Flight . | . . . . . . . . . . . . . . . . . . . Fastest Speed 50 | 50 120 190 130 160 160 170 90 105 120 160 160 120 135 200 200 240 160 50 Average Speed 165 | 114 183 206 155 160 164 170 120 119 128 226 160 229 141 200 234 240 235 170 Slowest Speed 350 | 120 190 260 260 160 175 170 170 135 240 240 240 240 200 200 240 240 240 350 Overloaded Moves . | . . . . . . . . . . . . . . . . . . . Propulsion Burnouts . | . . . . . . . . . . . . . . . . . . . Robots Hopped . | . . . . . . . . . . . . . . . . . . . Potential Cave-ins 4 | . . . . . . . . . . . . . 2 . . . . 2 Cave-ins Triggered . | . . . . . . . . . . . . . . . . . . . Exploration Rate (%) 67 | 5 97 99 83 99 93 30 86 46 89 75 70 71 45 82 76 75 29 33 Regions Visited 18 Branch Regions 11 Pre-discovered Areas 13 | . 1 . 1 1 3 . . . 2 . 1 . 1 1 . . . 2 Known Exits Taken 13 | . 1 1 . . 1 . . 1 1 1 1 1 1 1 1 1 1 . Unknown Exits Taken 3 | 1 . . 1 1 . . . . . . . . . . . . . . Scrap Searched 14 | . . 1 . 3 . . . . 4 3 . 3 . . . . . . Spaces Dug 148 | . 2 . 7 . 11 6 . 19 . 4 . . 33 19 . . 1 46 Terrain Destroyed 1105 | . 26 34 25 . 50 13 38 107 7 26 . 5 167 39 4 22 270 272 Melee 3 | . 2 . . . . . . 1 . . . . . . . . . . Projectile 319 | . 8 1 4 . 11 6 4 23 5 13 . 5 56 39 4 22 5 113 AOE 777 | . 16 33 20 . 39 6 34 83 . 13 . . 111 . . . 265 157 Terrain Rammed . | . . . . . . . . . . . . . . . . . . . Walls Destroyed . | . . . . . . . . . . . . . . . . . . . Machines Disabled . | . . . . . . . . . . . . . . . . . . . Actions | -11 -10 -10 -10 -9 -8 -7 -7 -7 -7 -7 -7 -6 -6 -6 -6 -6 -6 -5 --------- Run | Yrd Mat Min Exi Min Mat Fac Was Fac Low Low Dat Pro Fac Ext Cet Arc Hub Fac Total 24614 | 99 1405 975 1764 707 4864 1537 267 2671 1060 768 106 535 3505 1390 291 296 200 2174 Wait 3323 | . 98 23 149 58 1177 207 5 231 8 . . 4 650 228 4 104 4 373 Move 18987 | 69 1221 906 1455 628 3422 1208 177 2099 1020 703 96 492 2502 1032 222 163 168 1404 Hop . | . . . . . . . . . . . . . . . . . . . Pick Up 284 | 7 17 5 43 2 32 7 24 32 1 6 2 9 32 9 11 . . 45 Fast Attach 181 | 7 5 3 4 1 16 . 6 26 2 4 1 1 46 8 9 2 6 34 Attach 109 | . 2 . 6 . 8 3 5 15 1 2 2 6 14 4 3 . 3 35 Detach 28 | . . . . . 2 1 1 2 . 1 2 . 12 3 1 . 1 2 Swap 266 | . 9 14 22 1 36 38 5 55 3 9 . 4 33 15 7 . 2 13 Drop 320 | . 13 6 49 3 39 6 14 41 4 8 3 8 54 12 20 2 6 32 Fire 1015 | 16 38 18 32 14 88 67 30 169 21 25 . 11 162 43 14 22 9 236 Melee 12 | . 2 . 4 . 2 . . 1 . . . . . . . 3 . . Ram . | . . . . . . . . . . . . . . . . . . . Kick . | . . . . . . . . . . . . . . . . . . . Crush 1 | . . . . . . . . . . . . . . . . . 1 . Escape Stasis 12 | . . . . . . . . . . . . . . 12 . . . . Rewire 34 | . . . . . . . . . . 10 . . . 24 . . . . Trap 42 | . . . . . 42 . . . . . . . . . . . . . Miscellaneous . | . . . . . . . . . . . . . . . . . . . Route ------- -11/Scrapyard -10/Materials (discovered 6 exits: *Mat x3 / *Min x2 / Sub) -10/Mines (discovered 4 exits: *Mat x2 / *Exi / *Sub) -10/Exiles -9/Mines (discovered 2 exits: *Mat x2) -8/Materials (discovered 3 exits: *Fac x3) -7/Factory (discovered 5 exits: Fac x3 / Low x2) -7/Waste -7/Factory (discovered 3 exits: *Fac x2 / *Low) -7/Lower Caves -7/Lower Caves (discovered 2 exits: *Fac / *Dat) -7/Data Miner -6/Proximity Caves -6/Factory (discovered 2 exits: *Low / *Ext) -6/Extension (discovered 3 exits: *Fac x2 / *Cet) -6/Cetus (discovered 2 exits: *Fac / *Arc) -6/Archives (discovered 2 exits: *Fac / *Hub) -6/Hub_04(d) (discovered 2 exits: *Fac x2) -5/Factory (discovered 3 exits: *Fac / Upp x2) History --------- Turn | Location | Event 15 | -11/Scrapyard | Discovered new exit (range 15) 146 | -11/Scrapyard | Entered Materials 300 | -10/Materials | Build established: Mutant 463 | -10/Materials | Discovered new exit (range 11) 463 | -10/Materials | Discovered new exit (range 13) 1077 | -10/Materials | Learned Storage stockpile data 1119 | -10/Materials | Learned 2 Mines zone layouts 1151 | -10/Materials | Learned 4 Subcaves zone layouts 1171 | -10/Materials | Identified exit to Materials 1183 | -10/Materials | Learned 4 Recycling zone layouts 1184 | -10/Materials | Learned 2 Materials zone layouts 1185 | -10/Materials | Learned Storage stockpile data 1211 | -10/Materials | Identified exit to Subcaves 1211 | -10/Materials | Identified exit to Mines 2170 | -10/Materials | Repaired Grenade Launcher 2644 | -10/Materials | Entered Mines 2645 | -10/Mines | Identified exit to Exiles 2706 | -10/Mines | Discovered exit to Materials (range 8) 2736 | -10/Mines | Found a Scrap Suit stashed away for nefarious purposes 2868 | -10/Mines | Found a damaged Exp. Sensor Array with a note attached 2872 | -10/Mines | Found Prototype Device 2872 | -10/Mines | Identified Exp. Sensor Array 2970 | -10/Mines | Assembled infested the area 3045 | -10/Mines | Discovered exit to Subcaves (range 6) 3130 | -10/Mines | Found the Drone Emporium 3139 | -10/Mines | Found Prototype Device 3139 | -10/Mines | Identified Thief Drone Bay 3262 | -10/Mines | Discovered exit to Materials (range 4) 3518 | -10/Mines | Assisted by bots powering up and referring to "LRC-V3" 4620 | -10/Mines | Entered Exiles 4620 | -10/Exiles | Accompanied by 2 allies 4683 | -10/Exiles | Met 8R-AWN 4758 | -10/Exiles | Met EX-HEX 4852 | -10/Exiles | Met EX-DEC 4901 | -10/Exiles | Learned location of Zion (-6) 5021 | -10/Exiles | Discovered new exit (range 14) 5445 | -10/Exiles | Met EX-BIN 5785 | -10/Exiles | Attacked by the Exiles 5912 | -10/Exiles | Found 8R-AWN's Boregun 5932 | -10/Exiles | Found AS-neutralizer No. 17b 5934 | -10/Exiles | Found 8R-AWN's Boregun 5968 | -10/Exiles | Allies destroyed 8R-AWN 6927 | -10/Exiles | Allies destroyed EX-HEX 6929 | -10/Exiles | Allies destroyed EX-DEC 6936 | -10/Exiles | Allies destroyed EX-BIN 6958 | -10/Exiles | Found Deploy-a-Sentry 6989 | -10/Exiles | Found System Purifier 7240 | -10/Exiles | Left Exiles lab with Deploy-a-Sentry 7240 | -10/Exiles | Entered Mines 7240 | -9/Mines | Accompanied by 2 allies 7240 | -9/Mines | Discovered new exit (range 13) 7390 | -9/Mines | Received a Rocket Launcher from a helpful Derelict 7434 | -9/Mines | Discovered new exit (range 12) 7488 | -9/Mines | Learned location of Storage (-9) 7716 | -9/Mines | A weapon hastily lodged in a ceiling crevice suddenly fell to the ground 8094 | -9/Mines | Learned 2 Materials zone layouts 8352 | -9/Mines | Entered Materials 8352 | -8/Materials | Accompanied by 1 ally 8352 | -8/Materials | Evolved 4 slots: Utility x3, Weapon x1 8353 | -8/Materials | Identified exit to Factory 8932 | -8/Materials | Build established: Gunner 9394 | -8/Materials | Build established: Tank 9728 | -8/Materials | Build established: Gunner 10930 | -8/Materials | Discovered exit to Factory (range 14) 11443 | -8/Materials | Learned location of Extension (-6) 11500 | -8/Materials | Learned location of 1 exit from Storage 11579 | -8/Materials | Learned location of 1 exit from Lower Caves 11633 | -8/Materials | Learned Storage stockpile data 11658 | -8/Materials | Learned location of 1 exit from Extension 11694 | -8/Materials | Learned Storage emergency access door positions 11739 | -8/Materials | Learned Factory fabricator intel 12246 | -8/Materials | Repaired Broken Exp. Sensor Array 12285 | -8/Materials | Repaired Adv. Treads 12354 | -8/Materials | Repaired Adv. Weapon Cycler 12463 | -8/Materials | Repaired System Purifier 12845 | -8/Materials | Central database locked down 13165 | -8/Materials | Build established: Tank 13756 | -8/Materials | Repaired Broken Adv. Weapon Cycler 14000 | -8/Materials | Build established: Gunner 15527 | -8/Materials | Entered Factory 15527 | -7/Factory | Accompanied by 1 ally 15527 | -7/Factory | Evolved 2 slots: Utility x2 15528 | -7/Factory | Identified exit to Factory 15529 | -7/Factory | Loaded intel: 6 fabricator locations 15874 | -7/Factory | Central database locked down 15973 | -7/Factory | Build established: Tank 16302 | -7/Factory | Build established: Skirmisher 16782 | -7/Factory | Identified exit to Lower Caves 17978 | -7/Factory | Sucked down chute 17978 | -7/Factory | Entered Waste 17993 | -7/Waste | EMP discharged 17993 | -7/Waste | System corruption reached 10% 17993 | -7/Waste | Spotted C-40 Crusher 18010 | -7/Waste | Crushed by Compactor (1 part destroyed, 1 dropped) 18013 | -7/Waste | Crushed by Compactor (1 part destroyed, 1 dropped) 18016 | -7/Waste | Crushed by Compactor (1 part destroyed, 1 dropped) 18020 | -7/Waste | Destroyed C-40 Crusher 18048 | -7/Waste | Spotted C-40 Crusher 18050 | -7/Waste | Lost 4 parts (1n1u2w) 18069 | -7/Waste | Destroyed C-40 Crusher 18082 | -7/Waste | Spotted C-40 Crusher 18085 | -7/Waste | Found Damper Plating 18087 | -7/Waste | Found Damper Plating 18093 | -7/Waste | EMP discharged 18095 | -7/Waste | Destroyed C-40 Crusher 18102 | -7/Waste | Spotted C-40 Crusher 18118 | -7/Waste | Destroyed C-40 Crusher 18160 | -7/Waste | Spotted C-40 Crusher 18162 | -7/Waste | Destroyed C-40 Crusher 18164 | -7/Waste | Spotted C-40 Crusher 18171 | -7/Waste | Destroyed C-40 Crusher 18182 | -7/Waste | Found Damper Plating 18193 | -7/Waste | EMP discharged 18258 | -7/Waste | Discovered new exit (range 13) 18293 | -7/Waste | EMP discharged 18307 | -7/Waste | Identified exit to Factory 18314 | -7/Waste | Entered Factory 18388 | -7/Factory | Build established: Gunner 19377 | -7/Factory | Garrison activated, responded to threat 19416 | -7/Factory | Lost 3 parts (1p2w) 19548 | -7/Factory | Lost 3 parts (1p1u1w) 19880 | -7/Factory | Build established: Scavenger-Gunner 19914 | -7/Factory | First assault squad dispatched 20008 | -7/Factory | Core integrity fell below 50% 20126 | -7/Factory | DAS Turret deployed 20137 | -7/Factory | Lost 7 parts (1p1u5w) 20413 | -7/Factory | Build established: Gunner 20426 | -7/Factory | Discovered exit to Factory (range 13) 21319 | -7/Factory | Learned 4 Proximity Caves zone layouts 21455 | -7/Factory | Learned 2 Proximity Caves zone layouts 21509 | -7/Factory | Loaded intel: 26 terminal locations 21553 | -7/Factory | Learned location of 1 exit from Lower Caves 21561 | -7/Factory | Discovered exit to Lower Caves (range 4) 21617 | -7/Factory | Learned Extension emergency access door positions 21622 | -7/Factory | Entered Lower Caves 21622 | -7/Lower Caves | Accompanied by 1 ally 21623 | -7/Lower Caves | Identified exit to Lower Caves 22516 | -7/Lower Caves | Attracted the attention of an 0b10 checkpoint 22994 | -7/Lower Caves | Entered another Lower Caves area 22994 | -7/Lower Caves | Accompanied by 1 ally 22995 | -7/Lower Caves | Identified exit to Data Miner 22995 | -7/Lower Caves | Exp. Sensor Array stolen by Master Thief 22996 | -7/Lower Caves | Encountered a Master Thief 22996 | -7/Lower Caves | Encountered a Master Thief 23004 | -7/Lower Caves | Core integrity fell below 20% 23058 | -7/Lower Caves | Discovered exit to Factory (range 14) 23294 | -7/Lower Caves | Build established: Tank 23397 | -7/Lower Caves | Encountered a Warlord checkpoint 23932 | -7/Lower Caves | Build established: Commander-Tank 24346 | -7/Lower Caves | Attracted the attention of an 0b10 checkpoint 24412 | -7/Lower Caves | Lost 3 allies 24654 | -7/Lower Caves | Build established: Tank 24656 | -7/Lower Caves | Learned Factory interactive machine intel 24696 | -7/Lower Caves | Entered Data Miner 24696 | -7/Data Miner | Accompanied by 1 ally 24698 | -7/Data Miner | Discovered new exit (range 6) 24704 | -7/Data Miner | Identified exit to Proximity Caves 24754 | -7/Data Miner | Met Data Miner 24786 | -7/Data Miner | Learned location of Section 7 (-2) 24786 | -7/Data Miner | Acquired the access code to Warlord's prototype stash 24811 | -7/Data Miner | Received God Mode back door access code from Data Miner 24858 | -7/Data Miner | Entered Proximity Caves 24858 | -6/Proximity Caves | Accompanied by 1 ally 25477 | -6/Proximity Caves | Build established: Gunner 25481 | -6/Proximity Caves | Spotted B-75 Beast 25483 | -6/Proximity Caves | Escorted by Enhanced Grunt 25517 | -6/Proximity Caves | Destroyed B-75 Beast 25928 | -6/Proximity Caves | Build established: Tank 25992 | -6/Proximity Caves | Acquired the password to a Derelict Tinkerer's latest research 26007 | -6/Proximity Caves | Found Prototype Special Weapon 26055 | -6/Proximity Caves | Entered Factory 26055 | -6/Factory | Accompanied by 1 ally 26055 | -6/Factory | Evolved 2 slots: Utility x2 26056 | -6/Factory | Loaded intel: 56 interactive machine locations 26289 | -6/Factory | Build established: Gunner 26398 | -6/Factory | Fabricated M-22 Extractor (x1) 26472 | -6/Factory | Repaired Hrd. Heavy Armor Plating 26629 | -6/Factory | P-60 Hacker assimilated allied Extractor 5a 26835 | -6/Factory | Garrison activated, responded to threat 26848 | -6/Factory | Cargo convoy interrupted 26870 | -6/Factory | Incoming assault squad redirected 26912 | -6/Factory | Identified Molecular Deconstructor 27035 | -6/Factory | Fabricated Lgt. Regenerative Plating? 27219 | -6/Factory | Incoming assault squad redirected 27318 | -6/Factory | Found Prototype Launcher 27321 | -6/Factory | Identified Tactical Quantum Warhead 27345 | -6/Factory | Found PL-3XN's Ring of Power 27690 | -6/Factory | Discovered new exit (range 22) 27858 | -6/Factory | Build established: Skirmisher 28181 | -6/Factory | Discovered new exit (range 5) 28184 | -6/Factory | Identified exit to Extension 28269 | -6/Factory | Build established: Tank 28671 | -6/Factory | Fabricated Thermal Defense Suite? 28855 | -6/Factory | First assault squad dispatched 28861 | -6/Factory | Build established: Skirmisher 28880 | -6/Factory | Learned location of 2 exits from Archives 28911 | -6/Factory | Learned location of 2 exits from Upper Caves 28930 | -6/Factory | Learned location of 1 exit from Proximity Caves 28940 | -6/Factory | Learned 2 Hub_04(d) zone layouts 28941 | -6/Factory | Learned location of 1 exit from Upper Caves 28945 | -6/Factory | Learned Extension stockpile data 28953 | -6/Factory | Learned location of 1 exit from Extension 28970 | -6/Factory | Identified exit to Lower Caves 29586 | -6/Factory | Build established: Hacker-Skirmisher 29793 | -6/Factory | Incoming assault squad redirected 29904 | -6/Factory | Build established: Tank 30279 | -6/Factory | Found Exp. Targeting Computer 30616 | -6/Factory | Build established: Scavenger-Tank 30808 | -6/Factory | Garrison activated, responded to threat 30922 | -6/Factory | Entered Extension 30923 | -6/Extension | Identified exit to Cetus 30923 | -6/Extension | Identified exit to Factory 31040 | -6/Extension | Rescued A7 31052 | -6/Extension | Rescued a captive Derelict 31181 | -6/Extension | Rescued a captive Derelict 31181 | -6/Extension | Rescued a captive Derelict 31315 | -6/Extension | Build established: Tank 31440 | -6/Extension | Rescued a captive Derelict 32393 | -6/Extension | Spotted B-75 Beast 32398 | -6/Extension | Spotted B-75 Beast 32425 | -6/Extension | Allies destroyed B-75 Beast 32433 | -6/Extension | Destroyed B-75 Beast 32654 | -6/Extension | Learned 2 Proximity Caves zone layouts 32787 | -6/Extension | Learned 2 Upper Caves zone layouts 32817 | -6/Extension | Learned Extension stockpile data 32825 | -6/Extension | Rescued a captive Derelict 32826 | -6/Extension | Rescued a captive Derelict 32981 | -6/Extension | Rescued a captive Derelict 33417 | -6/Extension | Unchained authorized (CL-0N3) 33420 | -6/Extension | Entered Cetus 33420 | -6/Cetus | Accompanied by 6 allies (A7) 33425 | -6/Cetus | Acquired a Cetus Manufacturing Module code from A7 33446 | -6/Cetus | Spotted Cetus Guard 33446 | -6/Cetus | Spotted Cetus Guard 33451 | -6/Cetus | Spotted Cetus Guard 33464 | -6/Cetus | Allies destroyed Cetus Guard 33468 | -6/Cetus | Destroyed Cetus Guard 33468 | -6/Cetus | Destroyed Cetus Guard 33469 | -6/Cetus | Spotted Cetus Guard 33475 | -6/Cetus | Allies destroyed Cetus Guard 33494 | -6/Cetus | Lost 3 allies 33616 | -6/Cetus | Started Cetus Manufacturing Module 33634 | -6/Cetus | Escorted A7 to Cetus Mainframe 33641 | -6/Cetus | Manufactured an Enhanced Grunt 33666 | -6/Cetus | Manufactured an Enhanced Grunt 33691 | -6/Cetus | Manufactured an Enhanced Grunt 33716 | -6/Cetus | Manufactured an Enhanced Grunt 33741 | -6/Cetus | Manufactured an Enhanced Grunt 33773 | -6/Cetus | Discovered new exit (range 15) 33820 | -6/Cetus | Spotted Cetus Guard 33820 | -6/Cetus | Spotted Cetus Guard 33823 | -6/Cetus | Spotted Cetus Guard 33823 | -6/Cetus | Spotted Cetus Guard 33831 | -6/Cetus | Allies destroyed Cetus Guard 33831 | -6/Cetus | Allies destroyed Cetus Guard 33836 | -6/Cetus | Allies destroyed Cetus Guard 33837 | -6/Cetus | Allies destroyed Cetus Guard 33868 | -6/Cetus | Discovered exit to Factory (range 15) 33880 | -6/Cetus | Met Revision 17 34030 | -6/Cetus | Identified exit to Archives 34037 | -6/Cetus | Entered Archives 34037 | -6/Archives | Accompanied by 5 allies (A7) 34038 | -6/Archives | Identified exit to Hub_04(d) 34042 | -6/Archives | Received a hacking code to weaken MAIN.C 34172 | -6/Archives | Unable to access archive contents 34187 | -6/Archives | Build established: Scavenger-Tank 34610 | -6/Archives | Entered Hub_04(d) 34610 | -6/Hub_04(d) | Accompanied by 4 allies 34723 | -6/Hub_04(d) | Discovered exit to Factory (range 7) 34754 | -6/Hub_04(d) | Discovered exit to Factory (range 10) 34989 | -6/Hub_04(d) | Network Hub disabled 35016 | -6/Hub_04(d) | Spotted Lightning 35017 | -6/Hub_04(d) | Spotted Lightning 35017 | -6/Hub_04(d) | Spotted Lightning 35021 | -6/Hub_04(d) | Spotted Lightning 35026 | -6/Hub_04(d) | Spotted Lightning 35034 | -6/Hub_04(d) | System corruption reached 10% 35035 | -6/Hub_04(d) | Spotted Lightning 35041 | -6/Hub_04(d) | Found Exp. Thermal Shield 35050 | -6/Hub_04(d) | Network Hub disabled 35056 | -6/Hub_04(d) | Entered Factory 35056 | -5/Factory | Evolved 2 slots: Propulsion x1, Utility x1 35057 | -5/Factory | Identified exit to Upper Caves 35081 | -5/Factory | Lost 4 parts (1p1u2w) 36102 | -5/Factory | Repaired Centrium Medium Armor Plating 36168 | -5/Factory | Repaired Broken Adv. KE Penetrator 36339 | -5/Factory | Repaired Centrium Heavy Treads? 36436 | -5/Factory | Repaired Enh. Coil Gun? 36547 | -5/Factory | Repaired Broken Antimatter Reactor? 36556 | -5/Factory | First assault squad dispatched 37155 | -5/Factory | Learned 4 Extension zone layouts 37176 | -5/Factory | Incoming assault squad redirected 37229 | -5/Factory | Learned location of Armory (-3) 37250 | -5/Factory | Learned location of Upper Caves (-4) 37260 | -5/Factory | Learned Armory repair station intel 37261 | -5/Factory | Identified exit to Factory 37272 | -5/Factory | Learned 4 Research zone layouts 37295 | -5/Factory | Learned 4 Quarantine zone layouts 37437 | -5/Factory | Lost 3 parts (1n2u) 37479 | -5/Factory | Incoming assault squad redirected 37528 | -5/Factory | Incoming assault squad redirected 37546 | -5/Factory | Lost 6 parts (1p2u3w) 37549 | -5/Factory | Destroyed 9 combat bots 37633 | -5/Factory | Incoming assault squad redirected 37693 | -5/Factory | Destroyed 8 combat bots 37694 | -5/Factory | Lost 5 parts (1p1n2u1w) 37781 | -5/Factory | Lost 3 parts (1n2u) 37841 | -5/Factory | System corruption reached 10% 37918 | -5/Factory | Lost 10 parts (1p1n5u3w) 38289 | -5/Factory | Garrison activated, responded to threat 38354 | -5/Factory | Core integrity fell below 50% 38355 | -5/Factory | Lost 14 parts (1p2n7u4w) 38381 | -5/Factory | Incoming assault squad redirected 38382 | -5/Factory | Incoming assault squad redirected 38496 | -5/Factory | Lost 7 parts (1p2n1u3w) 38584 | -5/Factory | Core integrity fell below 20% 38671 | -5/Factory | Destroyed by G-50 Soldier with Heavy Laser Last Messages --------------- 38666_ R-10 Processor collects Imp. Treads. 38666_ K-01 Serf collects debris. 38666_ Dropped KE Penetrator. 38666_ K-01 Serf collects debris. 38666_ >> MONITOR: Recycling Unit F002 accepting Imp. Remote Datajack (63%). 38666_ U-05 Engineer builds a Door. 38667_ System corrupted: Matter fused (-10). 38667_ Dropped Tesla Rifle. 38667_ R-10 Processor collects Adv. Heat Sink. 38668_ K-01 Serf collects debris. 38669_ Acquired 13 matter. 38669_ K-01 Serf collects debris. 38669_ >> MONITOR: Recycling Unit F002 accepting Imp. Heat Sink (95%). 38669_ K-01 Serf collects debris. 38670_ R-10 Processor collects KE Penetrator. 38670_ R-10 Processor collects Neutrino Core. 38671_ Acquired 16 matter. 38671_ Critical hit (Burn: +37). Map ----- +----------------------------------------------------+ | ##???# "" # ^ ######+#+####### # | | #????#! "" + # = #?# # | | ?????# # ^ # #?####### | | ######/##+#+### # """ """" #???????# | | "T"### #?# ^ # """ """" #???????# | | #?# # """ """" #???????## | | #?####/###/####" """" #????????? | | #????# #?# #??## #????????? | | #????# #?# #???# """" """" #????????? | | ###### #?# #???# """" """" #????????? | | #?# #???# """" """" #????????? | | ### #???# """" """" #????????? | | #???# #????????? | | #???#"############????????? | | ####???## #??????????????????? | | #??????# ##?? ???????????????? | | ### "#??##############???????????? | | ###################"#### % *!| #???????????? | | + # % #???????????? | | ############## # #???????????? | | #???????#T ### # %% #???????????? | | #?????? # #???????????? | | #?????? # k u #???????????? | | #?????# k #= #???????????? | | #?????# [#k = ###?????????? | | #?????# =%/@!% k # #?????????? | | #?????# |# * | !;#??????????? | | #?????# # = !| ####????????? | | #?????? # * = l%= # #??G?????? | | #####??? g #####;;;;/[######"" ""###? | | #???? #### #??## lg gg "%" | | #???? ????# #?### ! Rg " | | #???????????# #?# # u | | #???????????# #?# # =i R | | #???????????# ## # [ | | #???????????# ###"# ^ #? | | #???????????# #? | | ??????????# % % ?? | | ?????????# #? | | ???H?????# #? | | ?????????# % #? | | ??????????# ##### #? | | ?????????????# %% " "######## #? | | ?????????????###########/####### #? ???? | | ?######+##???????# % # #???????? | | ?# ???????# # """ #???????? | | ?# ????????# o # """ + ?????? | | ?# ] ????????# # """ ## ???? | | ?# ??????# # #??? ??? | | # #?# """ ""??????# # """ #???R ??? | +----------------------------------------------------+ Best States ------------- Heat Dissipation 116 Coolant Potential 80 Energy Generation 27 Energy Capacity 350 Matter Stores 300 Matter Capacity 600 Sight Range 22 Robot Scan Range 20 Terrain Scan Range 16 Terrain Scan Density 10 Jamming Range 14 Power Amplification 40 Armor Coverage 1600 Resistance: TH 30 Resistance: EM 90 Core Shielding 20 Power Shielding 66 Propulsion Shielding 33 Utility Shielding 66 Weapon Cycling 25 Phase Shifting 5 Evasion (%) 55 Targeting Accuracy 12 Target Analysis 6 Core Analysis 6 Armor Integrity Analysis 40 Recoil Reduction 3 Particle Charging 25 Kinecelleration 30 Salvage Targeting 2 Offensive Hacking 10 Defensive Hacking 22 Authchip Count 1 Trap Extractor Capacity 6 Item Schematics ----------------- System Purifier | -8/Materials | Scanalyzed Exp. Sensor Array | -8/Materials | Scanalyzed Exp. Heat Sink | -8/Materials | Scanalyzed Adv. Weapon Cycler | -8/Materials | Scanalyzed Cold Fusion Reactor | -8/Materials | Scanalyzed Imp. Armor Integrity Analyzer | -8/Materials | Scanalyzed Lgt. Neutrino Core | -8/Materials | Scanalyzed Hcp. Matter Pod | -8/Materials | Scanalyzed Bore Cannon | -8/Materials | Scanalyzed Disruptor Cannon | -7/Factory | Hacked Hrd. Heavy Armor Plating | -7/Factory | Scanalyzed Combat Drone Bay | -7/Data Miner | Free Lgt. Regenerative Plating | -7/Data Miner | Free Biomechanical Wings | -7/Data Miner | Free Thermal Defense Suite | -7/Data Miner | Free Ion Burst Cannon | -7/Data Miner | Free Linear Gravjet | -7/Data Miner | Free Imp. Focal Shield | -7/Data Miner | Free Variable Charge Gun | -7/Data Miner | Free Hvy. Pick | -7/Data Miner | Free Wave Gun | -7/Data Miner | Free Hvy. Disruptor Cannon | -7/Data Miner | Free Centrium Heavy Treads | -5/Factory | Scanalyzed Robot Schematics ------------------ B-60 Warrior | -7/Data Miner | Free H-55 Commando | -7/Data Miner | Free R-10 Processor | -7/Data Miner | Free G-50 Soldier | -7/Data Miner | Free S-27 Virus | -7/Data Miner | Free Fabricated ------------ M-22 Extractor | x1 | -6/Factory | Preloaded Lgt. Regenerative Plating | x1 | -6/Factory Thermal Defense Suite | x1 | -6/Factory Repaired ---------- Grenade Launcher | 83% | -10/Materials Exp. Sensor Array | 62% | -8/Materials | Broken Adv. Treads | 25% | -8/Materials Adv. Weapon Cycler | 60% | -8/Materials System Purifier | 77% | -8/Materials Adv. Weapon Cycler | 99% | -8/Materials | Broken Hrd. Heavy Armor Plating | 43% | -6/Factory Centrium Medium Armor Plating | 2% | -5/Factory Adv. KE Penetrator | 12% | -5/Factory | Broken Centrium Heavy Treads | 10% | -5/Factory Enh. Coil Gun | 16% | -5/Factory Antimatter Reactor | 26% | -5/Factory | Broken Studied --------- Arm. Wheel | -8/Materials | Hacked Shock Rifle | -8/Materials | Hacked Arm. Huge Wheel | -7/Factory | Hacked Hvy. Ion Cannon | -7/Factory | Hacked Imp. Deuterium Engine | -7/Factory | Hacked Proton Missile Launcher | -7/Factory | Hacked Lightning Gun | -6/Factory | Hacked Hvy. Treads | -6/Factory | Hacked Alien Tech Used ----------------- None Achievements -------------- Immobile And Lovin' It Challenges ------------ None Game ------ Seed RocketUltimateJetlance Manual? 0 Play Time 06:40:48 Cumulative 734.6 hours Start 2025.11.26 @ 11:04:34 End 2025.11.27 @ 06:24:57 Sessions 5 Manual Loads 0 Difficulty Rogue Special Mode None Game No. 512 Rogue 512 Adventurer 0 Explorer 0 Win Type - Total 1 Types 1/0/0/0/0/0/0/0/0/0 Lore% 71 Gallery% 68 Achievement% 47 Wizard Run 0 Options --------- Layout 1 ASCII 0 Keyboard 0 Movement Mouse Keybinds 0 Fullscreen 1 Font 20/SmallcapsGlow Map View 54x42 Zoom Use 0% Tactical HUD 1 Map Filters NONE Filters NONE Steam 1 RUN: 9c4d5474-0673-4fbe-ae2b-19b8852a5722